bitfinex-derivatives/quotes_SOLF0:USTF0_20250113
["timestamp","ask_amount","ask_price","bid_price","bid_amount"]
[1736780004000,31.09659472,176.12,175.99,88.56]
[1736780004300,2.8431,176.02,175.93,6.6479]
[1736780004500,31.09659472,176.09,175.94,31.09659472]
[1736780004698,10.5,176.11,175.94,31.09659472]
[1736780004894,10.5,176.11,175.97,31.09659472]
[1736780005094,3.2527,176.13,176.0,31.09659472]
[1736780006301,3.2527,176.13,176.03,2.8427]
[1736780006302,2.8414,176.12,176.03,2.8427]
[1736780006503,3.2527,176.13,176.03,31.09659472]
[1736780006898,3.2612,176.16,176.06,31.09659472]
[1736780007300,3.2951,176.23,176.04,31.09659472]
[1736780007500,3.2951,176.23,176.15,2.8408]
[1736780007698,2.8395,176.24,176.14,31.09659472]
[1736780007906,10.42,176.29,176.14,31.09659472]
[1736780008200,3.97405177,176.25,176.14,31.09659472]
[1736780008396,2.8393,176.25,176.14,31.09659472]
[1736780008698,2.8395,176.24,176.14,33.93749472]
[1736780008904,2.8395,176.24,176.14,31.09659472]
[1736780009504,31.09659472,176.24,176.08,31.09659472]
[1736780009998,31.09659472,176.21,176.05,34.28699472]
[1736780010198,31.09659472,176.16,175.99,31.09659472]
[1736780010394,17.005,176.15,175.99,31.09659472]
[1736780010901,31.09659472,176.13,175.99,31.09659472]
[1736780011101,2.8421,176.08,175.99,31.09659472]
[1736780011399,17.005,176.15,176.02,31.09659472]
[1736780011603,17.005,176.15,175.99,33.93999472]
[1736780011805,31.09659472,176.13,175.99,31.09659472]
[1736780012002,31.09659472,176.13,175.98,6.6162]
[1736780012403,31.09659472,176.1,175.98,6.6162]
[1736780012797,6.645,176.15,176.03,31.09659472]
[1736780012997,37.74159472,176.15,176.0,31.09659472]
[1736780013601,31.09659472,176.12,175.98,6.6162]
[1736780014209,31.09659472,176.12,175.97,119.69659472]
[1736780014210,31.09659472,176.09,175.97,88.6]
[1736780014509,10.24,176.08,175.97,88.6]
[1736780014703,2.8425,176.05,175.97,88.6]
[1736780014899,31.09659472,176.06,175.87,88.62]
[1736780015105,31.09659472,176.03,175.87,88.62]
[1736780015305,2.8441,175.95,175.87,88.62]
[1736780016101,2.8439,175.97,175.87,88.62]
[1736780016306,10.2,175.98,175.84,31.09659472]
[1736780016909,2.8441,175.96,175.87,2.8454]
[1736780017109,10.2,175.98,175.87,2.8454]
[1736780017508,10.2,175.98,175.84,31.09659472]
[1736780018009,2.8441,175.95,175.84,31.09659472]
[1736780018208,10.2,175.98,175.87,31.09659472]
[1736780018410,3.1796,176.02,175.9,31.09659472]
[1736780018606,31.09659472,176.11,175.96,31.09659472]
[1736780018915,31.09659472,176.08,175.94,88.68]
[1736780019414,31.09659472,176.03,175.94,88.68]
[1736780019609,10.2,176.02,175.94,88.68]
[1736780020110,31.09659472,176.09,175.94,88.68]
[1736780020312,1.13571834,176.1,175.96,31.09659472]
[1736780020815,2.8424,176.06,175.96,31.09659472]
[1736780021310,1.13571834,176.1,175.99,31.09659472]
[1736780021611,31.09659472,176.06,175.95,3.3016]
[1736780021809,31.09659472,176.03,175.95,3.3016]
[1736780022206,31.09659472,176.0,175.94,88.68]
[1736780022413,2.8441,175.95,175.83,119.77659472]
[1736780022607,31.09659472,175.97,175.83,88.68]
[1736780022808,31.09659472,175.94,175.83,88.68]
[1736780023008,31.09659472,175.97,175.83,88.68]
[1736780023212,41.29659472,175.97,175.83,120.91405704]
[1736780023415,10.2,175.97,175.88,2.8452]
[1736780023611,2.8444,175.93,175.83,120.91405704]
[1736780023808,10.2,175.97,175.86,31.09659472]
[1736780024211,10.2,175.97,175.83,119.77659472]
[1736780024421,10.2,175.97,175.85,2.8457]
[1736780024619,2.8447,175.91,175.83,119.77659472]
[1736780024815,41.29659472,175.97,175.83,119.77659472]
[1736780025017,41.29659472,175.97,175.87,2.8454]
[1736780025316,10.2,175.97,175.86,31.09659472]
[1736780025522,10.2,175.97,175.89,2.845]
[1736780025818,2.8443,175.94,175.83,119.77659472]
[1736780026020,41.29659472,175.97,175.83,119.77659472]
[1736780026421,10.2,175.97,175.86,31.09659472]
[1736780027911,31.09659472,176.03,175.86,31.09659472]
[1736780028112,31.09659472,176.06,175.89,31.09659472]
[1736780028317,31.09659472,176.06,175.96,2.8439]
[1736780028618,2.8432,176.01,175.92,31.09659472]
[1736780028821,31.09659472,176.03,175.89,2.8451]
[1736780029120,31.09659472,176.0,175.68,39.64179472]
[1736780029321,244.0,175.68,175.54,46.30000341]
[1736780029515,31.09659472,175.6,175.54,46.30000341]
[1736780029719,6.804,175.67,175.54,46.30000341]
[1736780030221,31.09659472,175.65,175.54,46.30000341]
[1736780030415,31.09659472,175.75,175.58,31.09659472]
[1736780030617,31.09659472,175.75,175.61,31.09659472]
[1736780030819,31.09659472,175.75,175.59,88.76]
[1736780030820,539.39521351,175.66,175.59,88.76]
[1736780031215,528.59731351,175.66,175.61,31.09659472]
[1736780031416,256.68095632,175.65,175.64,2.8491]
[1736780031620,171.97960943,175.62,175.59,31.6724397]
[1736780031815,31.09659472,175.8,175.59,31.6724397]
[1736780032014,31.09659472,175.83,175.72,2.8478]
[1736780032420,31.09659472,175.83,175.66,29.95846235]
[1736780032617,31.21202731,175.81,175.64,31.21202731]
[1736780032916,10.46,175.85,175.73,50.73208705]
[1736780033517,10.46,175.85,175.74,2.8474]
[1736780033719,10.46,175.85,175.73,50.73208705]
[1736780034022,3.3212,175.88,175.73,133.87518849]
[1736780034221,10.4,175.92,175.73,133.87518849]
[1736780034222,31.1822813,175.92,175.75,31.1822813]
[1736780034427,31.1822813,175.96,175.8,31.1822813]
[1736780034720,31.1822813,175.96,175.84,2.8459]
[1736780035124,31.1822813,175.96,175.8,31.1822813]
[1736780035319,31.1822813,175.96,175.86,2.8455]
[1736780035516,31.1822813,175.96,175.8,31.1822813]
[1736780035717,31.1822813,175.9,175.81,5.25224139]
[1736780036017,31.1822813,175.93,175.81,5.25224139]
[1736780036315,31.1822813,175.93,175.85,2.8457]
[1736780036522,31.1822813,175.93,175.82,5.25224139]
[1736780036825,31.1822813,175.96,175.82,5.25224139]
[1736780037019,31.1822813,175.96,175.87,2.8453]
[1736780037221,31.1822813,175.93,175.83,50.34742988]
[1736780037521,31.1822813,175.96,175.87,2.8453]
[1736780037722,31.1822813,175.96,175.88,5.25224139]
[1736780038121,31.1822813,175.99,175.88,5.25224139]
[1736780038312,6.7207,176.03,175.88,5.25224139]
[1736780038313,31.1822813,175.93,175.88,5.25224139]
[1736780038518,31.1822813,175.9,175.88,5.25224139]
[1736780038724,31.1822813,175.9,175.89,5.25224139]
[1736780039317,31.1822813,175.9,175.89,50.34742988]
[1736780039517,31.1822813,175.9,175.78,2.8468]
[1736780039720,31.1822813,175.87,175.73,88.78]
[1736780039927,31.1822813,175.9,175.77,31.1822813]
[1736780040226,31.1822813,175.9,175.83,2.846]
[1736780040426,3.4753,175.92,175.77,31.1822813]
[1736780040728,3.3022,176.02,175.88,7.7649047]
[1736780040729,34.4844813,176.02,175.88,7.7649047]
[1736780040929,3.335,176.03,175.92,31.1822813]
[1736780041328,3.335,176.03,175.96,2.8438]
[1736780041529,41.4222813,176.08,175.93,13.35002753]
[1736780041830,31.1822813,176.08,175.95,31.1822813]
[1736780042224,31.1822813,176.11,175.95,31.1822813]
[1736780042431,31.1822813,176.11,175.98,31.1822813]
[1736780042624,3.3909,176.14,176.01,31.1822813]
[1736780042831,3.3909,176.14,176.02,88.74]
[1736780043226,31.1822813,176.14,176.02,88.74]
[1736780043823,3.3607,176.17,176.04,31.1822813]
[1736780043824,31.1822813,176.17,176.04,31.1822813]
[1736780044033,41.3822813,176.21,176.1,7.76850229]
[1736780044332,2.8396,176.23,176.1,7.76850229]
[1736780044522,31.1822813,176.24,176.1,38.95078359]
[1736780044730,9.5964,176.26,176.17,2.8405]
[1736780044924,9.5964,176.26,176.1,38.95078359]
[1736780044925,10.2,176.25,176.13,31.1822813]
[1736780045529,13.0393,176.25,176.16,2.8406]
[1736780045728,3.3965,176.26,176.13,31.1822813]
[1736780045929,31.1822813,176.33,176.16,31.1822813]
[1736780046122,31.1822813,176.33,176.19,31.1822813]
[1736780046328,10.1641,176.37,176.22,31.1822813]
[1736780046533,2.8376,176.36,176.28,2.8388]
[1736780046734,41.3822813,176.39,176.25,31.1822813]
[1736780046928,41.3822813,176.39,176.22,31.1822813]
[1736780047131,31.1822813,176.36,176.19,31.1822813]
[1736780047330,31.1822813,176.36,176.17,88.7]
[1736780047331,31.1822813,176.32,176.17,88.7]
[1736780047533,34.6269813,176.35,176.26,2.839]
[1736780047829,2.8376,176.36,176.22,31.1822813]
[1736780048035,31.1822813,176.37,176.28,2.8387]
[1736780048435,31.1822813,176.4,176.28,2.8387]
[1736780048830,31.1822813,176.4,176.26,2.8389]
[1736780049032,31.1822813,176.4,176.25,31.1822813]
[1736780049633,34.6269813,176.43,176.28,31.1822813]
[1736780049833,3.4447,176.43,176.28,31.1822813]
[1736780050030,3.4447,176.43,176.31,31.1822813]
[1736780050237,34.6269813,176.43,176.28,31.1822813]
[1736780050531,31.1822813,176.4,176.25,31.1822813]
[1736780050838,3.4447,176.43,176.28,31.1822813]
[1736780051027,3.4447,176.43,176.25,31.1822813]
[1736780051028,31.1822813,176.41,176.25,31.1822813]
[1736780051330,3.4447,176.43,176.28,31.1822813]
[1736780051536,3.4447,176.43,176.17,386.9]
[1736780051737,3.4447,176.43,176.3,31.1822813]
[1736780051937,6.2811,176.43,176.34,2.8377]
[1736780052138,3.4447,176.43,176.3,31.1822813]
[1736780052633,3.4447,176.43,176.35,2.8375]
[1736780052839,6.7631,176.44,176.33,31.1822813]
[1736780053541,6.7631,176.44,176.32,88.62]
[1736780053542,41.3822813,176.5,176.36,31.1822813]
[1736780053741,34.0175813,176.5,176.39,2.837]
[1736780053931,3.1931,176.51,176.39,31.1822813]
[1736780054333,10.2,176.53,176.39,31.1822813]
[1736780054537,10.2,176.53,176.44,2.8361]
[1736780054943,41.3822813,176.53,176.38,2.8371]
[1736780055143,31.1822813,176.5,176.33,31.1822813]
[1736780055339,31.1822813,176.51,176.36,31.1822813]
[1736780055543,9.6044,176.52,176.39,31.1822813]
[1736780055937,6.4113,176.52,176.45,2.836]
[1736780056147,10.18,176.57,176.45,31.1822813]
[1736780056443,31.1822813,176.48,176.36,31.1822813]
[1736780056642,31.1822813,176.48,176.34,88.58]
[1736780056947,31.1822813,176.51,176.36,31.1822813]
[1736780057647,31.1822813,176.48,176.36,31.1822813]
[1736780058048,2.8359,176.46,176.36,2.8374]
[1736780058246,31.1822813,176.48,176.34,88.58]
[1736780058650,31.1822813,176.45,176.34,88.58]
[1736780058953,10.18,176.47,176.34,88.58]
[1736780059245,10.18,176.47,176.34,119.7622813]
[1736780059444,20.0993,176.5,176.37,31.1822813]
[1736780059640,6.7253,176.5,176.37,31.1822813]
[1736780059845,10.18,176.55,176.43,31.1822813]
[1736780060041,31.1822813,176.57,176.43,31.1822813]
[1736780060241,31.1822813,176.51,176.34,88.58]
[1736780060441,31.1822813,176.51,176.35,31.1822813]
[1736780060640,2.8356,176.48,176.35,31.1822813]
[1736780060943,10.1064,176.5,176.38,31.1822813]
[1736780061144,10.1064,176.5,176.35,31.1822813]
[1736780061443,31.1822813,176.48,176.34,88.58]
[1736780061847,31.1822813,176.48,176.35,31.1822813]
[1736780062352,10.1064,176.5,176.35,31.1822813]
[1736780062544,2.8359,176.47,176.38,2.8371]
[1736780062947,2.8359,176.47,176.35,31.1822813]
[1736780063154,2.8347,176.54,176.45,2.8359]
[1736780063349,32.31497654,176.57,176.42,31.1822813]
[1736780063549,41.3622813,176.6,176.45,31.1822813]
[1736780063953,31.1822813,176.54,176.39,31.1822813]
[1736780064345,2.8348,176.53,176.45,2.836]
[1736780064552,31.1822813,176.57,176.45,2.836]
[1736780064749,6.4583,176.59,176.45,34.0182813]
[1736780064957,6.4583,176.59,176.45,31.1822813]
[1736780064958,2.8345,176.55,176.45,31.1822813]
[1736780065161,6.4583,176.59,176.45,31.1822813]
[1736780065659,2.8341,176.57,176.49,2.8352]
[1736780065954,5.6611,176.8,176.49,88.48]
[1736780066157,2.8338,176.6,176.52,2.8349]
[1736780066459,31.1822813,176.66,176.51,31.1822813]
[1736780066653,2.8335,176.61,176.53,2.8346]
[1736780066852,3.2938,176.65,176.51,31.1822813]
[1736780067156,2.8335,176.61,176.54,2.8345]
[1736780067657,13.4738,176.65,176.51,31.1822813]
[1736780067852,31.1822813,176.6,176.49,88.48]
[1736780068053,6.4555,176.59,176.49,88.48]
[1736780068358,2.8346,176.54,176.49,88.48]
[1736780068557,6.4555,176.59,176.49,88.48]
[1736780068757,31.1822813,176.57,176.49,88.48]
[1736780068958,31.1822813,176.54,176.39,31.1822813]
[1736780069456,2.8355,176.49,176.39,31.1822813]
[1736780069653,3.2024,176.53,176.45,31.1822813]
[1736780069851,3.2024,176.53,176.42,31.1822813]
[1736780070052,2.8354,176.5,176.44,2.8362]
[1736780070249,2.8354,176.5,176.38,88.48]
[1736780070250,10.18,176.71,176.48,31.1822813]
[1736780070448,31.1822813,176.64,176.48,31.1822813]
[1736780070851,31.1822813,176.61,176.45,31.1822813]
[1736780071160,9.8509,176.6,176.45,31.1822813]
[1736780071562,2.8343,176.56,176.48,2.8355]
[1736780071855,31.1822813,176.58,176.42,31.1822813]
[1736780072254,2.8349,176.53,176.46,2.8357]
[1736780072456,2.8349,176.53,176.42,31.1822813]
[1736780072656,31.1822813,176.58,176.42,31.1822813]
[1736780072962,31.1822813,176.58,176.38,88.48]
[1736780072963,9.8509,176.6,176.45,31.1822813]
[1736780073156,20.0309,176.6,176.45,31.1822813]
[1736780073656,31.1822813,176.55,176.39,31.1822813]
[1736780073854,31.1822813,176.58,176.45,2.836]
[1736780074056,31.1822813,176.58,176.42,31.1822813]
[1736780075057,31.1822813,176.55,176.42,31.1822813]
[1736780075462,31.1822813,176.55,176.44,2.8358]
[1736780075658,31.1822813,176.58,176.45,31.1822813]
[1736780075853,9.8509,176.6,176.48,31.1822813]
[1736780076053,9.8509,176.6,176.49,2.835]
[1736780076460,9.8509,176.6,176.48,31.1822813]
[1736780077060,1.13231047,176.63,176.51,31.1822813]
[1736780077256,1.13231047,176.63,176.54,31.1822813]
[1736780077456,2.8333,176.61,176.55,2.834]
[1736780077656,1.13231047,176.63,176.51,31.1822813]
[1736780077854,2.8339,176.57,176.51,2.8347]
[1736780078054,9.9478,176.62,176.5,31.1822813]
[1736780078259,3.2859,176.62,176.53,31.1822813]
[1736780078458,2.8333,176.61,176.54,2.8342]
[1736780078860,2.834,176.56,176.5,34.0171813]
[1736780079065,31.1822813,176.61,176.47,31.1822813]
[1736780079361,31.1822813,176.61,176.44,10.18]
[1736780079362,2.8349,176.51,176.44,2.8358]
[1736780079561,31.1822813,176.51,176.38,119.6622813]
[1736780079766,31.1822813,176.51,176.38,88.48]
[1736780080067,2.8361,176.43,176.38,88.48]
[1736780080259,3.4716,176.5,176.38,88.48]
[1736780080659,31.1822813,176.51,176.38,88.48]
[1736780080862,31.1822813,176.48,176.38,88.48]
[1736780081168,31.1822813,176.51,176.38,88.48]
[1736780081364,31.1822813,176.54,176.4,31.1822813]
[1736780082259,2.8352,176.49,176.43,2.836]
[1736780082465,31.1822813,176.57,176.43,31.1822813]
[1736780082669,3.4716,176.59,176.46,31.1822813]
[1736780083071,6.5419,176.6,176.49,31.1822813]
[1736780083274,37.7241813,176.6,176.46,31.1822813]
[1736780083476,31.1822813,176.57,176.43,31.1822813]
[1736780083873,2.8345,176.53,176.47,2.8354]
[1736780084072,37.7241813,176.6,176.43,31.1822813]
[1736780084278,37.7241813,176.6,176.35,10.16]
[1736780084279,93.05943183,176.76,176.59,31.1822813]
[1736780084573,124.24171313,176.76,176.61,31.1822813]
[1736780084874,31.1822813,176.73,176.58,31.1822813]
[1736780085080,3.2276,176.72,176.55,31.1822813]
[1736780085280,31.1822813,176.7,176.55,31.1822813]
[1736780085472,3.2276,176.72,176.58,31.1822813]
[1736780086274,31.1822813,176.7,176.55,31.1822813]
[1736780086577,31.1822813,176.67,176.52,31.1822813]
[1736780087666,30.92013631,176.66,176.5,119.36013631]
[1736780087876,3.2821,176.65,176.5,119.36013631]
[1736780088281,3.2833,176.64,176.5,119.36013631]
[1736780088978,3.2833,176.64,176.53,30.92013631]
[1736780089379,2.8336,176.59,176.5,88.44]
[1736780089680,30.92013631,176.63,176.5,88.44]
[1736780089980,3.2833,176.64,176.53,30.92013631]
[1736780090374,3.2833,176.64,176.5,119.36013631]
[1736780090569,30.92013631,176.6,176.5,88.44]
[1736780090769,3.2833,176.64,176.5,30.92013631]
[1736780090971,2.8337,176.58,176.5,30.92013631]
[1736780091275,30.92013631,176.63,176.47,30.92013631]
[1736780091575,30.92013631,176.6,176.44,30.92013631]
[1736780091780,3.355,176.59,176.44,30.92013631]
[1736780091975,3.355,176.59,176.47,30.92013631]
[1736780092580,3.355,176.59,176.44,30.92013631]
[1736780093182,3.355,176.59,176.47,30.92013631]
[1736780093879,2.834,176.56,176.47,30.92013631]
[1736780094076,3.355,176.59,176.47,30.92013631]
[1736780094282,3.355,176.59,176.44,30.92013631]
[1736780094477,3.355,176.59,176.47,30.92013631]
[1736780094777,6.1886,176.59,176.47,33.75553631]
[1736780094978,3.355,176.59,176.5,30.92013631]
[1736780095778,3.355,176.59,176.42,123.19510929]
[1736780095779,3.355,176.59,176.47,30.92013631]
[1736780096572,3.355,176.59,176.5,30.92013631]
[1736780098177,3.2833,176.64,176.5,30.92013631]
[1736780098684,3.2134,176.63,176.51,2.8346]
[1736780098886,2.8335,176.59,176.51,2.8346]
[1736780099092,34.13353631,176.63,176.47,30.92013631]
[1736780099285,2.8337,176.58,176.48,2.8352]
[1736780099486,34.13353631,176.63,176.47,30.92013631]
[1736780099885,3.2134,176.63,176.5,30.92013631]
[1736780100381,3.2134,176.63,176.53,30.92013631]
[1736780100981,3.2134,176.63,176.5,30.92013631]
[1736780101186,34.13353631,176.63,176.5,30.92013631]
[1736780101483,3.2134,176.63,176.53,30.92013631]
[1736780101690,10.16,176.71,176.56,30.92013631]
[1736780101891,16.8006,176.7,176.56,30.92013631]
[1736780102186,16.8006,176.7,176.59,30.92013631]
[1736780102488,6.6406,176.7,176.59,30.92013631]
[1736780103389,30.92013631,176.69,176.53,119.34013631]
[1736780103982,30.92013631,176.69,176.56,30.92013631]
[1736780104179,6.6406,176.7,176.59,30.92013631]
[1736780104387,3.2483,176.7,176.59,30.92013631]
[1736780104787,3.2483,176.7,176.56,30.92013631]
[1736780105289,30.92013631,176.69,176.56,30.92013631]
[1736780105480,30.92013631,176.63,176.5,30.92013631]
[1736780105684,30.92013631,176.63,176.47,7.76656267]
[1736780105685,6.5642,176.62,176.47,38.68669898]
[1736780106091,6.5642,176.62,176.5,2.8348]
[1736780106286,6.5642,176.62,176.47,38.68669898]
[1736780106287,30.92013631,176.6,176.47,7.76656267]
[1736780106590,2.8343,176.54,176.47,7.76656267]
[1736780106988,3.2708,176.59,176.44,30.92013631]
[1736780107185,30.92013631,176.54,176.41,7.76656267]
[1736780107391,3.1559,176.53,176.41,7.76656267]
[1736780107690,2.8348,176.51,176.43,2.836]
[1736780107885,3.1559,176.53,176.41,30.92013631]
[1736780108088,2.8341,176.56,176.48,2.8351]
[1736780108287,3.2708,176.59,176.47,30.92013631]
[1736780108688,3.2708,176.59,176.44,30.92013631]
[1736780109084,30.92013631,176.57,176.41,30.92013631]
[1736780109288,30.92013631,176.54,176.38,30.92013631]
[1736780109484,30.92013631,176.48,176.35,38.68669898]
[1736780109788,2.8357,176.45,176.35,38.68669898]
[1736780110088,30.92013631,176.57,176.41,30.92013631]
[1736780110395,10.16,176.56,176.44,30.92013631]
[1736780110692,3.2708,176.59,176.34,88.42]
[1736780110693,3.2708,176.59,176.5,30.92013631]
[1736780110893,2.8337,176.58,176.5,30.92013631]
[1736780111090,3.1567,176.62,176.53,30.92013631]
[1736780111294,10.16,176.67,176.53,30.92013631]
[1736780111488,10.16,176.67,176.56,30.92013631]
[1736780111795,3.3025,176.69,176.56,30.92013631]
[1736780111990,3.3025,176.69,176.59,30.92013631]
[1736780112387,3.3025,176.69,176.52,30.92013631]
[1736780112388,34.22263631,176.69,176.52,30.92013631]
[1736780112594,34.22263631,176.69,176.55,30.92013631]
[1736780112794,34.22263631,176.69,176.52,30.92013631]
[1736780112990,3.3025,176.69,176.44,153.61606396]
[1736780113192,30.92013631,176.54,176.44,30.41519509]
[1736780113393,30.92013631,176.51,176.44,7.76656267]
[1736780113690,30.92013631,176.45,176.43,7.57369509]
[1736780113891,41.08013631,176.45,176.42,52.98653772]
[1736780114088,2.8364,176.41,176.4,82.0236565]
[1736780114292,33.75653631,176.41,176.4,82.0236565]
[1736780114692,33.75653631,176.41,176.4,24.5505565]
[1736780114890,30.92013631,176.41,176.37,155.29809416]
[1736780115093,30.92013631,176.41,176.23,30.92013631]
[1736780115294,30.92013631,176.38,176.25,2.8388]
[1736780115503,30.92013631,176.38,176.23,30.92013631]
[1736780115692,2.8374,176.35,176.23,30.92013631]
[1736780115895,30.92013631,176.38,176.23,30.92013631]
[1736780116199,30.92013631,176.41,176.26,30.92013631]
[1736780116391,30.92013631,176.41,176.3,2.8381]
[1736780116698,30.92013631,176.41,176.26,30.92013631]
[1736780117490,30.92013631,176.38,176.27,2.8385]
[1736780117693,30.92013631,176.38,176.24,9.6529]
[1736780117694,30.92013631,176.41,176.26,30.92013631]
[1736780118300,10.16,176.43,176.24,9.6529]
[1736780118301,33.75703631,176.38,176.24,9.6529]
[1736780118599,30.92013631,176.38,176.24,9.6529]
[1736780119402,10.16,176.43,176.24,9.6529]
[1736780119403,30.92013631,176.41,176.26,30.92013631]
[1736780119803,30.92013631,176.41,176.31,2.8378]
[1736780119997,30.92013631,176.41,176.26,30.92013631]
[1736780120802,30.92013631,176.38,176.24,9.6529]
[1736780121302,2.8367,176.4,176.3,2.8381]
[1736780121499,30.92013631,176.41,176.26,30.92013631]
[1736780122004,2.8369,176.38,176.32,2.8378]
[1736780122405,30.92013631,176.41,176.26,30.92013631]
[1736780123002,2.8375,176.35,176.28,2.8383]
[1736780123202,30.92013631,176.38,176.24,9.6529]
[1736780123603,30.92013631,176.41,176.24,9.6529]
[1736780123806,30.92013631,176.38,176.24,9.6529]
[1736780124307,30.92013631,176.35,176.24,9.6529]
[1736780124804,30.92013631,176.29,176.15,123.39825596]
[1736780125001,30.92013631,176.29,176.16,10.1226]
[1736780125202,30.92013631,176.29,176.17,2.8401]
[1736780125402,30.92013631,176.26,176.17,2.8401]
[1736780125698,30.92013631,176.26,176.16,10.1226]
[1736780126404,2.8397,176.21,176.16,10.1226]
[1736780126702,3.4157,176.33,175.96,293.6871]
[1736780126703,41.08013631,176.2,176.05,30.92013631]
[1736780126897,41.08013631,176.2,176.05,37.38643631]
[1736780127105,2.8407,176.15,176.06,3.1582]
[1736780127298,41.08013631,176.2,176.06,3.1582]
[1736780127497,30.92013631,176.17,176.06,3.1582]
[1736780127902,30.92013631,176.14,176.06,3.1582]
[1736780128202,30.92013631,176.14,176.0,88.52]
[1736780128403,30.92013631,176.14,176.01,3.1491]
[1736780128695,2.8412,176.12,176.04,2.8423]
[1736780128900,30.92013631,176.14,176.04,2.8423]
[1736780129096,9.808,176.19,176.01,3.1491]
[1736780129097,30.92013631,176.11,176.01,3.1491]
[1736780130207,2.8419,176.07,176.01,5.9919]
[1736780130402,30.92013631,176.16,176.01,3.1491]
[1736780130615,9.808,176.19,176.02,30.92013631]
[1736780130616,40.72813631,176.19,176.02,30.92013631]
[1736780130800,6.3923,176.19,176.05,30.92013631]
[1736780131101,30.92013631,176.19,176.05,30.92013631]
[1736780131499,30.92013631,176.22,176.05,30.92013631]
[1736780131913,30.92013631,176.22,176.13,2.8408]
[1736780132310,30.92013631,176.22,176.05,30.92013631]
[1736780132609,30.92013631,176.19,176.05,30.92013631]
[1736780132811,30.92013631,176.15,176.03,88.58]
[1736780133207,30.92013631,176.18,176.03,88.58]
[1736780133608,2.8414,176.1,176.03,91.4224]
[1736780133808,30.92013631,176.15,176.03,88.58]
[1736780134002,30.92013631,176.09,176.01,3.1491]
[1736780134410,30.92013631,176.12,176.01,3.1491]
[1736780135210,2.8422,176.06,176.01,3.1491]
[1736780135408,30.92013631,176.09,176.01,3.1491]
[1736780135810,2.8425,176.03,176.01,3.1491]
[1736780136207,30.92013631,176.09,176.01,3.1491]
[1736780136914,30.92013631,176.12,176.01,5.9918]
[1736780137108,30.92013631,176.12,176.01,3.1491]
[1736780137506,2.8418,176.08,176.03,2.8425]
[1736780137706,30.92013631,176.12,176.01,3.1491]
[1736780138111,10.16,176.14,176.02,30.92013631]
[1736780138310,13.5613,176.2,176.05,30.92013631]
[1736780138512,10.16,176.2,176.06,3.3883]
[1736780138710,10.16,176.22,176.08,30.92013631]
[1736780138912,10.16,176.22,176.11,30.92013631]
[1736780139211,23.46757334,176.23,176.12,6.404]
[1736780139418,23.46757334,176.29,176.14,30.92013631]
[1736780139714,2.8391,176.25,176.2,2.8397]
[1736780140014,23.46757334,176.29,176.14,30.92013631]
[1736780140212,2.8397,176.21,176.13,2.8407]
[1736780140417,30.92013631,176.24,176.13,2.8407]
[1736780140617,30.92013631,176.24,176.12,6.404]
[1736780141313,30.92013631,176.28,176.13,30.92013631]
[1736780141515,30.92013631,176.31,176.16,30.92013631]
[1736780141712,30.92013631,176.31,176.17,3.4443]
[1736780141913,2.839,176.25,176.18,2.8401]
[1736780142112,30.92013631,176.28,176.17,3.4443]
[1736780142908,2.84,176.19,176.17,3.4443]
[1736780143118,30.92013631,176.25,176.12,6.404]
[1736780143309,30.92013631,176.28,176.12,37.32413631]
[1736780143516,2.8394,176.22,176.16,2.8404]
[1736780143710,30.92013631,176.25,176.12,6.404]
[1736780144017,30.92013631,176.22,176.12,6.404]
[1736780144218,2.8403,176.17,176.12,9.2451]
[1736780144614,2.8396,176.22,176.15,2.8405]
[1736780144920,30.92013631,176.28,176.12,37.32413631]
[1736780145315,2.8397,176.21,176.15,2.8406]
[1736780145520,30.92013631,176.25,176.12,6.404]
[1736780145817,2.8402,176.18,176.12,9.245]
[1736780146016,30.92013631,176.25,176.12,6.404]
[1736780146320,2.8402,176.18,176.12,9.2449]
[1736780146515,30.92013631,176.25,176.12,9.2449]
[1736780146822,30.92013631,176.25,176.12,6.404]
[1736780147113,30.92013631,176.22,176.12,6.404]
[1736780147317,30.92013631,176.28,176.06,34.11003631]
[1736780147318,30.92013631,176.19,176.06,34.11003631]
[1736780147514,41.08013631,176.19,176.07,3.2432]
[1736780147715,30.92013631,176.16,176.07,3.2432]
[1736780147919,2.8408,176.14,176.07,3.2432]